fUSD/lending_fUSD_20250716
["ID","MTS","AMOUNT","RATE_DAILY","PERIOD"]
[372534534,1752675046459,-500.0,0.00021917,2]
[372534535,1752675046468,-460.0,0.00021917,2]
[372534537,1752675046478,-500.0,0.00021917,2]
[372534538,1752675046487,-500.0,0.00021917,2]
[372534540,1752675046497,-735.79,0.00021917,2]
[372534542,1752675046506,-460.0,0.00021917,2]
[372534543,1752675046515,-460.0,0.00021917,2]
[372534545,1752675046524,-1171.51,0.00021917,2]
[372534546,1752675046533,-462.35536448,0.00021917,2]
[372534548,1752675046543,-738.54,0.00021917,2]
[372534549,1752675046552,-460.0,0.00021917,2]
[372534551,1752675046562,-460.0,0.00021917,2]
[372534553,1752675046571,-460.0,0.00021917,2]
[372534554,1752675046580,-460.0,0.00021917,2]
[372534556,1752675046590,-841.62,0.00021917,2]
[372534558,1752675046600,-151.0,0.00021917,2]
[372534559,1752675046609,-511.8241127,0.00021917,2]
[372534561,1752675046619,-538.67018256,0.00021917,2]
[372534563,1752675046628,-500.0,0.00021917,2]
[372534564,1752675046637,-460.0,0.00021917,2]
[372534566,1752675046648,-500.0,0.00021917,2]
[372534568,1752675046657,-460.0,0.00021917,2]
[372534569,1752675046666,-500.0,0.00021917,2]
[372534571,1752675046676,-500.0,0.00021917,2]
[372534573,1752675046685,-500.0,0.00021917,2]
[372534574,1752675046695,-500.0,0.00021917,2]
[372534576,1752675046704,-500.0,0.00021917,2]
[372534578,1752675046713,-500.0,0.00021917,2]
[372534579,1752675046723,-500.0,0.00021917,2]
[372534581,1752675046733,-1259.07,0.00021917,2]
[372534582,1752675046742,-460.0,0.00021917,2]
[372534584,1752675046751,-862.74,0.00021917,2]
[372534586,1752675046760,-460.0,0.00021917,2]
[372534587,1752675046769,-462.27567643,0.00021917,2]
[372534589,1752675046779,-460.0,0.00021917,2]
[372534590,1752675046788,-460.0,0.00021917,2]
[372534592,1752675046798,-469.95,0.00021917,2]
[372534594,1752675046808,-460.0,0.00021917,2]
[372534595,1752675046818,-460.0,0.00021917,2]
[372534597,1752675046827,-460.0,0.00021917,2]
[372534598,1752675046837,-460.0,0.00021917,2]
[372534600,1752675046847,-468.88,0.00021917,2]
[372534602,1752675046857,-460.0,0.00021917,2]
[372534603,1752675046866,-862.48,0.00021917,2]
[372534605,1752675046876,-460.0,0.00021917,2]
[372534607,1752675046885,-460.0,0.00021917,2]
[372534608,1752675046896,-460.0,0.00021917,2]
[372534610,1752675046905,-592.41,0.00021917,2]
[372534612,1752675046915,-460.0,0.00021917,2]
[372534613,1752675046924,-626.43,0.00021917,2]
[372534615,1752675046934,-460.0,0.00021917,2]
[372534617,1752675046944,-460.0,0.00021917,2]
[372534618,1752675046954,-460.0,0.00021917,2]
[372534620,1752675046964,-598.93,0.00021917,2]
[372534622,1752675046974,-460.0,0.00021917,2]
[372534623,1752675046983,-460.0,0.00021917,2]
[372534625,1752675046994,-460.0,0.00021917,2]
[372534627,1752675047012,-460.0,0.00021917,2]
[372534629,1752675047027,-741.98,0.00021917,2]
[372534630,1752675047039,-463.46,0.00021917,2]
[372534631,1752675047049,-460.0,0.00021917,2]
[372534632,1752675047059,-460.0,0.00021917,2]
[372534633,1752675047068,-460.0,0.00021917,2]
[372534634,1752675047078,-460.0,0.00021917,2]
[372534635,1752675047087,-460.0,0.00021917,2]
[372534636,1752675047097,-469.72,0.00021917,2]
[372534637,1752675047106,-460.0,0.00021917,2]
[372534638,1752675047116,-460.0,0.00021917,2]
[372534639,1752675047126,-460.0,0.00021917,2]
[372534640,1752675047135,-460.0,0.00021917,2]
[372534641,1752675047144,-500.0,0.00021917,2]
[372534643,1752675047154,-500.0,0.00021917,2]
[372534645,1752675047163,-500.0,0.00021917,2]
[372534646,1752675047174,-460.0,0.00021917,2]
[372534648,1752675047192,-505.0,0.00021917,2]
[372534651,1752675047204,-460.0,0.00021917,2]
[372534653,1752675047214,-460.0,0.00021917,2]
[372534655,1752675047226,-460.0,0.00021917,2]
[372534656,1752675047237,-567.23,0.00021917,2]
[372534658,1752675047247,-460.0,0.00021917,2]
[372534660,1752675047257,-582.23648838,0.00021917,2]
[372534663,1752675047271,-517.75,0.00021917,2]
[372534665,1752675047282,-460.0,0.00021917,2]
[372534667,1752675047291,-460.0,0.00021917,2]
[372534669,1752675047303,-536.89,0.00021917,2]
[372534671,1752675047312,-160.0,0.00021917,2]
[372534673,1752675047322,-460.0,0.00021917,2]
[372534675,1752675047331,-460.0,0.00021917,2]
[372534677,1752675047341,-460.0,0.00021917,2]
[372534679,1752675047350,-460.0,0.00021917,2]
[372534681,1752675047359,-909.55,0.00021917,2]
[372534683,1752675047369,-460.0,0.00021917,2]
[372534685,1752675047378,-460.0,0.00021917,2]
[372534687,1752675047388,-864.67,0.00021917,2]
[372534689,1752675047399,-460.0,0.00021917,2]
[372534691,1752675047409,-460.0,0.00021917,2]
[372534693,1752675047417,-492.61,0.00021917,2]
[372534695,1752675047427,-1156.76,0.00021917,2]
[372534697,1752675047436,-460.0,0.00021917,2]
[372534699,1752675047445,-460.0,0.00021917,2]
[372534701,1752675047454,-1090.5,0.00021917,2]
[372534703,1752675047464,-460.0,0.00021917,2]
[372534705,1752675047472,-460.0,0.00021917,2]
[372534707,1752675047481,-3014.77723786,0.00021917,2]
[372534715,1752675047553,-235.96276214,0.00021917,2]
[372534717,1752675047563,-460.0,0.00021917,2]
[372534719,1752675047573,-120.51417346,0.00021917,2]
[372534722,1752675047588,-3961.49945086,0.00021917,2]
[372534774,1752675048093,-620.51,0.00021917,2]
[372534777,1752675048103,-23.84874682,0.00021917,2]
[372534781,1752675048135,-436.15125318,0.00021917,2]
[372534783,1752675048146,-460.0,0.00021917,2]
[372534785,1752675048156,-460.0,0.00021917,2]
[372534787,1752675048166,-460.0,0.00021917,2]
[372534789,1752675048176,-862.91,0.00021917,2]
[372534791,1752675048187,-460.0,0.00021917,2]
[372534793,1752675048204,-462.17036318,0.00021917,2]
[372534795,1752675048214,-460.0,0.00021917,2]
[372534797,1752675048229,-822.38,0.00021917,2]
[372534799,1752675048238,-460.0,0.00021917,2]
[372534801,1752675048248,-460.0,0.00021917,2]
[372534803,1752675048259,-460.0,0.00021917,2]
[372534805,1752675048269,-500.0,0.00021917,2]
[372534807,1752675048279,-500.0,0.00021917,5]
[372534809,1752675048288,-500.0,0.00021917,2]
[372534811,1752675048300,-460.0,0.00021917,2]
[372534813,1752675048310,-500.0,0.00021917,2]
[372534815,1752675048319,-500.0,0.00021917,2]
[372534817,1752675048329,-439.0,0.00021917,2]
[372534819,1752675048340,-460.0,0.00021917,2]
[372534821,1752675048349,-460.0,0.00021917,2]
[372534823,1752675048359,-460.0,0.00021917,2]
[372534825,1752675048369,-460.0,0.00021917,2]
[372534827,1752675048379,-500.0,0.00021917,2]
[372534829,1752675048388,-500.0,0.00021917,2]
[372534831,1752675048399,-500.0,0.00021917,2]
[372534833,1752675048409,-506.66,0.00021917,2]
[372534835,1752675048418,-644.27,0.00021917,2]
[372534837,1752675048428,-1699.0,0.00021917,2]
[372534839,1752675048438,-1059.41,0.00021917,2]
[372534841,1752675048448,-460.0,0.00021917,2]
[372534843,1752675048457,-460.0,0.00021917,2]
[372534845,1752675048467,-460.0,0.00021917,2]
[372534847,1752675048477,-465.08418685,0.00021917,2]
[372534849,1752675048487,-460.0,0.00021917,2]
[372534851,1752675048496,-635.9,0.00021917,2]
[372534853,1752675048505,-460.0,0.00021917,2]
[372534855,1752675048514,-460.0,0.00021917,2]
[372534857,1752675048524,-460.0,0.00021917,2]
[372534859,1752675048533,-460.0,0.00021917,2]
[372534861,1752675048542,-460.0,0.00021917,2]
[372534863,1752675048552,-460.0,0.00021917,2]
[372534865,1752675048562,-2131.45,0.00021917,2]
[372534867,1752675048571,-460.0,0.00021917,2]
[372534869,1752675048581,-460.0,0.00021917,2]
[372534871,1752675048590,-460.0,0.00021917,2]
[372534873,1752675048599,-460.0,0.00021917,2]
[372534875,1752675048610,-460.0,0.00021917,2]
[372534877,1752675048619,-460.0,0.00021917,2]
[372534879,1752675048629,-460.0,0.00021917,2]
[372534881,1752675048640,-460.0,0.00021917,2]
[372534882,1752675048650,-640.83,0.00021917,2]
[372534885,1752675048660,-460.0,0.00021917,2]
[372534887,1752675048670,-460.0,0.00021917,2]
[372534889,1752675048680,-1677.67,0.00021917,2]
[372534890,1752675048690,-460.0,0.00021917,2]
[372534891,1752675048699,-300.0,0.00021917,2]
[372534892,1752675048709,-5998.57,0.00021917,2]
[372534893,1752675048720,-460.0,0.00021917,2]
[372534894,1752675048729,-460.0,0.00021917,2]
[372534895,1752675048739,-151.0,0.00021917,2]
[372534896,1752675048749,-460.0,0.00021917,2]
[372534897,1752675048759,-460.0,0.00021917,2]
[372534899,1752675048769,-1060.89,0.00021917,2]
[372534900,1752675048778,-348.66829466,0.00021917,2]
[372535053,1752675050369,-500.0,0.00021916,2]
[372535055,1752675050379,-500.0,0.00021916,2]
[372535057,1752675050389,-500.0,0.00021916,2]
[372535059,1752675050400,-111.33170534,0.00021917,2]
[372535061,1752675050409,-490.59903826,0.00021917,2]
[372535063,1752675050419,-151.0,0.00021917,2]
[372535065,1752675050429,-941.06925632,0.00021917,2]
[372535072,1752675050484,-445.84695471,0.00021916,2]
[372535074,1752675050494,-1229.97074368,0.00021917,2]
[372535076,1752675050504,-460.0,0.00021917,2]
[372535078,1752675050514,-460.0,0.00021917,2]
[372535080,1752675050524,-2243.94,0.00021917,2]
[372535082,1752675050533,-1849.77,0.00021917,2]
[372535084,1752675050543,-1240.18,0.00021917,2]
[372535086,1752675050552,-268.94892,0.00021917,2]
[372535088,1752675050562,-460.0,0.00021917,2]
[372535090,1752675050571,-772.42,0.00021917,2]
[372535092,1752675050581,-460.0,0.00021917,2]
[372535094,1752675050591,-460.0,0.00021917,2]
[372535096,1752675050600,-688.57,0.00021917,2]
[372535098,1752675050610,-460.0,0.00021917,2]
[372535100,1752675050620,-460.0,0.00021917,2]
[372535102,1752675050629,-152.124651,0.00021917,2]
[372535104,1752675050639,-998.88,0.00021917,2]
[372535106,1752675050649,-460.0,0.00021917,2]
[372535108,1752675050658,-460.0,0.00021917,2]
[372535110,1752675050668,-1707.62,0.00021917,2]
[372535112,1752675050679,-614.83,0.00021917,2]
[372535114,1752675050688,-767.89,0.00021917,2]
[372535116,1752675050698,-1586.37,0.00021917,2]
[372535118,1752675050708,-460.0,0.00021917,2]
[372535120,1752675050717,-460.0,0.00021917,2]
[372535122,1752675050727,-460.0,0.00021917,2]
[372535124,1752675050736,-638.83,0.00021917,2]
[372535126,1752675050746,-598.64,0.00021917,2]
[372535128,1752675050755,-648.03,0.00021917,2]
[372535130,1752675050765,-460.0,0.00021917,2]
[372535132,1752675050775,-1197.28,0.00021917,2]
[372535134,1752675050784,-746.82,0.00021917,2]
[372535136,1752675050793,-460.0,0.00021917,2]
[372535138,1752675050803,-9088.15,0.00021917,2]
[372535140,1752675050812,-602.46,0.00021917,2]
[372535142,1752675050822,-907.48,0.00021917,2]
[372535144,1752675050831,-10312.61,0.00021917,2]
[372535146,1752675050841,-460.0,0.00021917,2]
[372535148,1752675050851,-719.09,0.00021917,2]
[372535150,1752675050861,-1859.17,0.00021917,2]
[372535152,1752675050871,-2358.76,0.00021917,2]
[372535154,1752675050880,-1155.34,0.00021917,2]
[372535156,1752675050890,-2858.94,0.00021917,2]
[372535158,1752675050900,-460.0,0.00021917,2]
[372535161,1752675050910,-4943.25,0.00021917,2]
[372535163,1752675050920,-460.0,0.00021917,2]
[372535164,1752675050930,-460.0,0.00021917,2]
[372535167,1752675050939,-460.0,0.00021917,2]
[372535169,1752675050949,-460.0,0.00021917,2]
[372535171,1752675050958,-460.0,0.00021917,2]
[372535172,1752675050968,-460.0,0.00021917,2]
[372535174,1752675050978,-2280.99,0.00021917,2]
[372535177,1752675050987,-2371.75,0.00021917,2]
[372535179,1752675050996,-514.97047773,0.00021917,2]
[372535181,1752675051006,-460.0,0.00021917,2]
[372535183,1752675051015,-460.0,0.00021917,2]
[372535185,1752675051026,-460.0,0.00021917,2]
[372535187,1752675051035,-460.0,0.00021917,2]
[372535189,1752675051045,-460.0,0.00021917,2]
[372535191,1752675051055,-548.9,0.00021917,2]
[372535192,1752675051064,-462.78904692,0.00021917,2]
[372535194,1752675051073,-2710.84,0.00021917,2]
[372535197,1752675051083,-460.0,0.00021917,2]
[372535198,1752675051092,-460.0,0.00021917,2]
[372535201,1752675051102,-636.01,0.00021917,2]
[372535203,1752675051112,-460.0,0.00021917,2]
[372535205,1752675051121,-151.0,0.00021917,2]
[372535207,1752675051132,-460.0,0.00021917,2]
[372535209,1752675051141,-632.78,0.00021917,2]
[372535211,1752675051152,-460.0,0.00021917,2]
[372535249,1752675051522,-462.09173111,0.00021917,2]
[372535250,1752675051552,-460.0,0.00021917,2]
[372535251,1752675051562,-460.0,0.00021917,2]
[372535252,1752675051571,-460.0,0.00021917,2]
[372535253,1752675051581,-460.0,0.00021917,2]
[372535254,1752675051590,-1636.19,0.00021917,2]
[372535255,1752675051599,-460.0,0.00021917,2]
[372535257,1752675051609,-461.20468403,0.00021917,2]
[372535259,1752675051618,-721.3,0.00021917,2]
[372535261,1752675051628,-862.5,0.00021917,2]
[372535263,1752675051638,-1481.49066622,0.00021917,2]
[372535269,1752675051689,-572.64933378,0.00021917,2]
[372535271,1752675051698,-460.0,0.00021917,2]
[372535274,1752675051708,-460.0,0.00021917,2]
[372535275,1752675051718,-1333.94,0.00021917,2]
[372535278,1752675051728,-1775.27,0.00021917,2]
[372535280,1752675051737,-593.49,0.00021917,2]
[372535281,1752675051747,-460.0,0.00021917,2]
[372535283,1752675051756,-460.0,0.00021917,2]
[372535286,1752675051766,-1490.05,0.00021917,2]
[372535288,1752675051776,-460.0,0.00021917,2]
[372535290,1752675051786,-460.0,0.00021917,2]
[372535292,1752675051796,-635.05,0.00021917,2]
[372535294,1752675051806,-460.0,0.00021917,2]
[372535296,1752675051815,-460.0,0.00021917,2]
[372535298,1752675051826,-460.0,0.00021917,2]
[372535300,1752675051836,-1404.21,0.00021917,2]
[372535302,1752675051847,-460.0,0.00021917,2]
[372535304,1752675051857,-460.0,0.00021917,2]
[372535306,1752675051867,-460.0,0.00021917,2]
[372535308,1752675051877,-500.0,0.00021917,2]
[372535310,1752675051887,-500.0,0.00021917,2]
[372535312,1752675051896,-460.0,0.00021917,2]
[372535314,1752675051905,-500.0,0.00021917,2]
[372535316,1752675051916,-460.0,0.00021917,2]
[372535318,1752675051926,-500.0,0.00021917,2]
[372535320,1752675051935,-485.34066575,0.00021917,2]
[372535322,1752675051947,-2076.88933425,0.00021917,2]
[372535324,1752675051958,-460.0,0.00021917,2]
[372535326,1752675051968,-460.0,0.00021917,2]
[372535328,1752675051978,-1391.83,0.00021917,2]
[372535330,1752675051988,-4695.22,0.00021917,2]
[372535332,1752675051997,-95.84111575,0.00021917,2]
[372535335,1752675052009,-292.2639238,0.00021917,2]
[372535352,1752675052166,-378.02496045,0.00021917,2]
[372535354,1752675052176,-1056.41,0.00021917,2]
[372535356,1752675052186,-309.52914887,0.00021917,2]
[372535482,1752675319257,160.98,0.00013699,2]
[372535484,1752675389638,514.0,0.0001713,2]
[372535485,1752675432135,2700.0,0.00016871,2]
[372535487,1752675495453,320.93,0.00030137,120]
[372535488,1752675559028,1069.75798091,0.00029041,120]
[372535493,1752675710101,746.0,0.00017514,2]
[372535510,1752676156482,-208.63399667,0.000179,2]
[372535511,1752676156507,-300.0,0.00017917,2]
[372535512,1752676156529,-250.0,0.00017933,2]
[372535513,1752676156551,-2700.0,0.00017967,2]
[372535514,1752676156572,-1313.05357881,0.00018,2]
[372535529,1752676231735,-471.3997334,0.00018,2]
[372535530,1752676231745,-603.41738578,0.00018515,2]
[372535531,1752676231815,-196.58261422,0.00018515,2]
[372535532,1752676231826,-238.20238578,0.00019063,2]
[372535533,1752676231838,-716.075878,0.00019063,2]
[372535534,1752676231851,-750.81041459,0.00019063,2]
[372535535,1752676231864,-994.91132163,0.00019063,2]
[372535536,1752676231873,-58.20011432,0.000191,2]
[372535537,1752676231898,-241.79988568,0.000191,2]
[372535538,1752676231908,-114.65015268,0.00019153,2]
[372535539,1752676231920,-444.37499933,0.00019153,2]
[372535540,1752676231932,-285.54466512,0.00019153,2]
[372535541,1752676231953,-700.77018287,0.00019153,2]
[372535542,1752676231964,-179.7695246,0.00019178,2]
[372535543,1752676231976,-1200.0,0.00019273,2]
[372535544,1752676231987,-200.0,0.00019274,2]
[372535545,1752676231997,-190.0,0.00019274,7]
[372535546,1752676232008,-222.12,0.00019274,2]
[372535547,1752676232019,-1000.0,0.00019274,2]
[372535548,1752676232031,-150.0,0.00019399,2]
[372535549,1752676232041,-17447.84083349,0.000194,2]
[372535550,1752676232054,-17755.5,0.000194,2]
[372535551,1752676232112,-56396.21431541,0.000194,2]
[372535555,1752676237817,-288.70280587,0.000194,2]
[372535556,1752676237831,-541.1846,0.000194,2]
[372535557,1752676237915,-12419.6601853,0.000194,2]
[372535558,1752676237929,-3022.52258783,0.000194,2]
[372535559,1752676237942,-2377.63195777,0.000194,2]
[372535562,1752676238274,-1460.92,0.000194,2]
[372535794,1752676240778,-455662.47427301,0.000194,2]
[372535796,1752676240788,-659.09,0.00019423,2]
[372535798,1752676240799,-244.65,0.0001945,2]
[372535800,1752676240809,-200.0,0.0001951,2]
[372535802,1752676240818,-167.45,0.0001961,2]
[372535804,1752676240828,-800.0,0.00019611,2]
[372535806,1752676240837,-1000.0,0.0001969,2]
[372535808,1752676240846,-250.0,0.0001969,2]
[372535809,1752676240856,-300.0,0.0001969,2]
[372535811,1752676240867,-211.79,0.0001988,2]
[372535813,1752676240877,-19339.34362235,0.000199,2]
[372535815,1752676240887,-2727.89005681,0.000199,2]
[372535817,1752676240897,-170.1551342,0.000199,2]
[372535819,1752676240907,-4743.2,0.00019955,2]
[372535821,1752676240919,-2727.89005679,0.00019978,2]
[372535823,1752676240929,-500.0,0.00019987,2]
[372535825,1752676240938,-500.0,0.00019987,2]
[372535827,1752676240948,-356.47997136,0.00019987,2]
[372535829,1752676240958,-344.60162424,0.00019987,2]
[372535831,1752676240968,-214.3268505,0.00019987,2]
[372535833,1752676240977,-314.20847344,0.00019987,2]
[372535835,1752676240987,-183.03340521,0.00019987,2]
[372535837,1752676240997,-600.0,0.00019988,2]
[372535839,1752676241007,-600.0,0.00019988,2]
[372535841,1752676241017,-600.0,0.00019988,2]
[372535843,1752676241027,-600.0,0.00019988,2]
[372535845,1752676241036,-600.0,0.00019988,2]
[372535847,1752676241046,-600.0,0.00019988,2]
[372535849,1752676241056,-600.0,0.00019988,2]
[372535851,1752676241066,-600.0,0.00019988,2]
[372535853,1752676241076,-600.0,0.00019988,2]
[372535855,1752676241085,-600.0,0.00019988,2]
[372535857,1752676241094,-600.0,0.00019988,2]
[372535859,1752676241104,-600.0,0.00019988,2]
[372535861,1752676241114,-600.0,0.00019988,2]
[372535863,1752676241123,-600.0,0.00019988,2]
[372535865,1752676241132,-600.0,0.00019988,2]
[372535867,1752676241141,-600.0,0.00019988,2]
[372535869,1752676241151,-400.0,0.00019988,2]
[372535871,1752676241160,-151.0,0.00019988,2]
[372535873,1752676241172,-151.0,0.00019988,2]
[372535875,1752676241180,-151.0,0.00019988,2]
[372535877,1752676241190,-199.64533766,0.0001999,2]
[372535879,1752676241199,-13136.73359216,0.0002,2]
[372535880,1752676241208,-1850.47247099,0.0002,2]
[372535882,1752676241217,-40000.0,0.0002,2]
[372535884,1752676241227,-63894.0,0.0002,2]
[372535886,1752676241237,-91232.79415614,0.0002,2]
[372535899,1752676241356,-292.8504198,0.0002,2]
[372535909,1752676241437,-7547.49238507,0.0002,2]
[372535911,1752676241449,-1715.80014011,0.0002,2]
[372535913,1752676241461,-1284.53999937,0.0002,2]
[372535923,1752676241650,-5041.93883,0.0002185,30]
[372536060,1752676242834,-3634.70821806,0.0002,2]
[372536069,1752676243006,-319.34,0.0002,2]
[372536357,1752676246187,-440.83500053,0.0002,2]
[372536360,1752676246224,-1683.99593405,0.0002,2]
[372536373,1752676246443,-832.78477474,0.0002,2]
[372536374,1752676246508,-500.0,0.00019399,2]
[372536375,1752676246518,-500.0,0.00019399,2]
[372536377,1752676246528,-500.0,0.00019399,2]
[372536379,1752676246538,-500.0,0.00019399,2]
[372536382,1752676246548,-173324.05934506,0.0002,2]
[372536398,1752676246699,-500.0,0.00019399,2]
[372536400,1752676246709,-500.0,0.00019399,2]
[372536402,1752676246719,-33640.87865935,0.0002,2]
[372536404,1752676246732,-119700.0,0.0002,2]
[372537277,1752676318564,160.98,0.00013699,2]
[372537279,1752676340288,232.24944788,0.00029906,120]
[372537301,1752676897639,15000.0,0.00030136,120]
[372537308,1752677152007,176.56,0.00015292,2]
[372537309,1752677220497,-500.0,0.00025,90]
[372537310,1752677227966,-1000.0,0.00024589,30]
[372537311,1752677228070,-300.0,0.00025,30]
[372537312,1752677228094,-1089.57946603,0.00025,30]
[372537313,1752677228118,-5011.98,0.00025,30]
[372537316,1752677287611,-163.84,0.00019299,7]
[372537317,1752677287639,-2416.73719971,0.0002,7]
[372537328,1752677431915,-514.0,0.00018255,2]
[372537329,1752677431926,-305.307305,0.00018422,2]
[372537330,1752677431936,-151.792695,0.00019,2]
[372537331,1752677431948,-269.207305,0.00019,2]
[372537332,1752677431959,-110.22854407,0.00019,2]
[372537333,1752677431974,-46.25884147,0.00019,2]
[372537334,1752677431985,-177.69,0.00019087,2]
[372537335,1752677431995,-1020.72850313,0.00019119,2]
[372537336,1752677432009,-897.7061991,0.00019119,2]
[372537337,1752677432033,-449.29529777,0.00019119,2]
[372537338,1752677432044,-1000.0,0.00019126,2]
[372537339,1752677432053,-848.0,0.00019317,2]
[372537340,1752677432063,-300.0,0.00019318,2]
[372537341,1752677432072,-1200.0,0.00019318,2]
[372537342,1752677432082,-4743.2,0.00019319,2]
[372537343,1752677432092,-659.09,0.00019404,2]
[372537344,1752677432101,-850.0,0.00019407,2]
[372537345,1752677432111,-42633.31,0.00019408,2]
[372537346,1752677432120,-211.79,0.00019435,2]
[372537347,1752677432129,-800.0,0.0001952,2]
[372537348,1752677432138,-2000.0,0.0001952,2]
[372537349,1752677432147,-1749.76789,0.000198,2]
[372537350,1752677432157,-167.45,0.00019969,2]
[372537351,1752677432167,-350.0,0.0001998,2]
[372537352,1752677432178,-600.0,0.00019988,2]
[372537353,1752677432187,-600.0,0.00019988,2]
[372537354,1752677432196,-600.0,0.00019988,2]
[372537355,1752677432206,-600.0,0.00019988,2]
[372537356,1752677432215,-600.0,0.00019988,2]
[372537357,1752677432224,-600.0,0.00019988,2]
[372537358,1752677432234,-600.0,0.00019988,2]
[372537359,1752677432244,-600.0,0.00019988,2]
[372537360,1752677432254,-600.0,0.00019988,2]
[372537361,1752677432264,-600.0,0.00019988,2]
[372537362,1752677432273,-600.0,0.00019988,2]
[372537363,1752677432283,-600.0,0.00019988,2]
[372537364,1752677432292,-600.0,0.00019988,2]
[372537365,1752677432301,-600.0,0.00019988,2]
[372537366,1752677432310,-151.0,0.00019988,2]
[372537367,1752677432319,-600.0,0.00019988,2]
[372537368,1752677432328,-151.0,0.00019988,2]
[372537369,1752677432337,-600.0,0.00019988,2]
[372537370,1752677432347,-151.0,0.00019988,2]
[372537371,1752677432356,-400.0,0.00019988,2]
[372537372,1752677432365,-36450.99564262,0.0002,2]
[372537373,1752677432378,-21773.84057298,0.0002,2]
[372537374,1752677432387,-2474.15942702,0.0002,2]
[372537376,1752677432415,-1210.5,0.0002,2]
[372537378,1752677432437,-944.37046492,0.0002,2]
[372537380,1752677432447,-150.0,0.0002,5]
[372537382,1752677432457,-1001.92708931,0.0002,2]
[372537384,1752677432467,-3951.71781577,0.0002,2]
[372537386,1752677432478,-425.18333004,0.0002,2]
[372537388,1752677432491,-256.4025,0.0002,2]
[372537390,1752677432505,-1114.48689221,0.0002,2]
[372537392,1752677432514,-1000.0,0.0002,2]
[372537394,1752677432524,-177.69,0.00020042,2]
[372537396,1752677432534,-954.99522455,0.0002008,2]
[372537398,1752677432545,-45.00477545,0.0002008,2]
[372537400,1752677432555,-250.0,0.0002008,2]
[372537402,1752677432564,-161.75172455,0.000201,2]
[372537409,1752677438067,-38.24827545,0.000201,2]
[372537410,1752677438077,-500.0,0.000201,7]
[372537411,1752677438086,-211.79,0.00020164,2]
[372537412,1752677438096,-1000.0,0.000202,7]
[372537413,1752677438110,-1600.0,0.000203,7]
[372537414,1752677438131,-629.35652455,0.000204,7]
[372537415,1752677438181,-1470.64347545,0.000204,7]
[372537416,1752677438220,-13492.4042882,0.00020406,2]
[372537417,1752677438249,-350.0,0.00020435,2]
[372537418,1752677438275,-2600.0,0.000205,7]
[372537419,1752677438300,-28709.9884,0.00020506,2]
[372537420,1752677438324,-1000.0,0.00020506,2]
[372537421,1752677438347,-200.0,0.0002051,2]
[372537422,1752677438372,-2084.313,0.000206,2]
[372537423,1752677438397,-500.0,0.000206,7]
[372537424,1752677438420,-2727.89005679,0.00020604,2]
[372537426,1752677438438,-2727.89005679,0.00020605,2]
[372537428,1752677438448,-500.0,0.00020605,2]
[372537430,1752677438457,-498.77056326,0.00020605,2]
[372537432,1752677438467,-500.0,0.00020605,2]
[372537434,1752677438476,-398.73635523,0.00020605,2]
[372537436,1752677438485,-500.0,0.00020605,2]